Cogmind - Beta 15 @@@ ROGUE MODE // 2025.08.10 @ 18:07:55 Player: Skysub Result: Destroyed by 9U-DNU(R) with Subdweller Laser Performance ------------- Evolutions (0) 0 Regions Visited (3) 600 Robots Destroyed (21) 105 Value Destroyed (427) 427 Prototype IDs (0) 0 Alien Tech Used (0) 0 Bonus (-15) -15 TOTAL SCORE: 1117 Bonus ------- Friendly Fire -15 Cogmind --------- Core Integrity 0/250 Matter 255/300 Energy 77/100 System Corruption 0% Temperature Cool (6) Movement Treading (360) Ox2 Location -10/Subcaves Parts ------- > --- POWER (1) -------- (None) > --- PROPULSION (2) --- Spiked Treads Wheel > --- UTILITY (2) ------ High-capacity Storage Unit Makeshift Light Armor Plating > --- WEAPON (2) ------- Subdweller Laser Barrage Gun > --- INVENTORY (20) --- Subdweller Power Source Light Treads Wheel Subdweller Monowheel Improved Heat Sink Large Storage Unit Structural Scanner Improved Terrain Scanner Seismic Detector Heavy Riot Gun Mining Laser Heavy Hammer Peak State ------------ > --- POWER ------------ Ion Engine > --- PROPULSION ------- Spiked Treads Wheel > --- UTILITY ---------- High-capacity Storage Unit Makeshift Light Armor Plating > --- WEAPON ----------- Subdweller Laser Barrage Gun > --- INVENTORY -------- Subdweller Power Source Light Treads Wheel Subdweller Monowheel Improved Heat Sink Large Storage Unit Structural Scanner Improved Terrain Scanner Seismic Detector Heavy Riot Gun Mining Laser Heavy Hammer [Rating: 16] Favorites ----------- Power Ion Engine Engine Ion Engine Propulsion Light Treads Treads Light Treads Wheel Wheel Utility High-capacity Storage Unit Device Seismic Detector Storage High-capacity Storage Unit Protection Light Armor Plating Weapon Assault Rifle Energy Gun Subdweller Laser Ballistic Gun Assault Rifle Impact Weapon Heavy Hammer Build | -11 -10 -10 -10 ------- Run | Yrd Mat Min Sub Slots Evolved . | . . . . Power . | . . . . Propulsion . | . . . . Utility . | . . . . Weapon . | . . . . Parts Attached 24 | 7 3 3 11 Power 2 | 1 . . 1 Engine 2 | 1 . . 1 Core . | . . . . Reactor . | . . . . Propulsion 7 | 2 1 1 3 Treads 3 | 2 . . 1 Leg . | . . . . Wheel 4 | . 1 1 2 Hover . | . . . . Flight . | . . . . Utility 9 | 2 2 1 4 Device 2 | 1 . . 1 Storage 3 | 1 2 . . Processor . | . . . . Hackware . | . . . . Protection 4 | . . 1 3 Artifact . | . . . . Weapon 6 | 2 . 1 3 Energy Gun 1 | . . . 1 Energy Cannon . | . . . . Ballistic Gun 4 | 2 . . 2 Ballistic Cannon . | . . . . Launcher . | . . . . Special Weapon . | . . . . Impact Weapon 1 | . . 1 . Slashing Weapon . | . . . . Piercing Weapon . | . . . . Special Melee Weapon . | . . . . Unidentified Prototypes . | . . . . Parts Lost 12 | . . . 12 Power 2 | . . . 2 Propulsion 4 | . . . 4 Utility 3 | . . . 3 Weapon 3 | . . . 3 Highest Loss Streak 11 | . . . 11 To Critical Strikes . | . . . . Average Backups 9 | 3 5 13 10 Power . | . 1 1 1 Propulsion 2 | 1 2 3 2 Utility 4 | . 1 6 5 Weapon 2 | . 1 2 1 Tool/Special . | . . . . Unused Backups 7 | 1 . . 6 Power 1 | . . . 1 Propulsion 1 | . . . 1 Utility 2 | . . . 2 Weapon 3 | 1 . . 2 Tool/Special . | . . . . Average Slot Usage (%) 97 | . 100 100 92 Engine 13 | . 14 14 13 Treads 17 | . 27 14 13 Wheel 10 | . . 14 14 Device 8 | . 14 . 12 Storage 14 | . 14 14 14 Protection 5 | . . 13 . Energy Gun 2 | . . . 6 Ballistic Gun 20 | . 28 27 6 Impact Weapon 3 | . . . 10 Peak Build Rating 16 | 7 8 10 16 Average Rating 8 | 5 7 8 10 On Entrance 6 | . 7 8 10 Naked Turns . | . . . . Heaviest Build 56 | 15 50 53 56 Greatest Support 40 | 40 40 10 20 Greatest Overweight (x) 5 | 1 4 5 5 Average Overweight (x) 3 | . . 4 4 Largest Inventory Capacity 20 | 8 20 20 20 Average Capacity 17 | 7 15 20 20 Most Carried 16 | 6 11 16 16 Average Carried 9 | 3 5 13 10 Final Capacity 20 | 8 20 20 20 Final Carried 16 | 5 11 16 12 Class Distribution -------------------- 98% | Mutant Dominant Class ---------------- Mutant | -10/Materials Mutant | -10/Mines Mutant | -10/Subcaves Resources | -11 -10 -10 -10 ----------- Run | Yrd Mat Min Sub Matter Collected 651 | 290 37 207 117 Remotely . | . . . . Salvage Created 640 | 78 75 353 134 Parts 46 | 7 7 28 4 Haulers Intercepted 1 | . 1 . . Recyclers Shooed 1 | . 1 . . Parts Field Recycled . | . . . . Retrieved Matter . | . . . . Parts Self-Destructed 9 | . . . 9 Prevented . | . . . . Kills | -11 -10 -10 -10 ------- Run | Yrd Mat Min Sub Combat Hostiles Destroyed 13 | . . 9 4 Guns 10 | . . 9 1 Classes Destroyed 7 | 1 2 3 1 Worker 2 | . 1 1 . Builder 1 | . . 1 . Tunneler 4 | 4 . . . Hauler 1 | . 1 . . Swarmer 4 | . . 3 1 Grunt 6 | . . 6 . Subdweller 3 | . . . 3 Best Kill Streak 3 | 2 2 3 1 Combat Bots Only 3 | . . 3 1 Max Kills in Single Turn 1 | 1 1 1 1 Gunslinging . | . . . . Exploded . | . . . . Melee . | . . . . Uniques/NPCs Destroyed . | . . . . Combat | -11 -10 -10 -10 -------- Run | Yrd Mat Min Sub Hostile Shots Fired 100 | . . 37 63 Missed 22 | . . 11 11 Hits 78 | . . 26 52 Projectile 78 | . . 26 52 Critical Strikes 1 | . . 1 . Damage Taken 1500 | . . 304 1196 Core 250 | . . 26 224 Absorbed by Shields . | . . . . Core Remaining (%) 100 | 100 . . . Volleys Fired 47 | 7 4 26 10 Largest 2 | 2 2 2 2 Hottest 88 | 40 40 40 88 Shots Fired 93 | 14 8 52 19 Gun 93 | 14 8 52 19 Cannon . | . . . . Launcher . | . . . . Special . | . . . . Kinetic 87 | 14 8 52 13 Thermal 6 | . . . 6 Explosive . | . . . . Electromagnetic . | . . . . Robot Hit Streak 12 | 4 1 10 12 Robot Miss Streak 4 | 2 4 2 1 Penetration Max . | . . . . Secondary Targets 2 | . . 2 . Max Gunslinging Chain 1 | . . 1 . Shots Hit Robots 77 | 7 2 38 30 Core Hits 28 | 4 3 18 3 Critical Kills 1 | . . 1 . Critical Parts Destroyed 3 | . . 1 2 Critical Strikes 5 | . . 2 3 Destroy 2 | . . 2 . Smash 3 | . . . 3 Melee Attacks 40 | . . 1 39 Impact 40 | . . 1 39 Slashing . | . . . . Piercing . | . . . . Sneak Attacks . | . . . . Combat Hostiles . | . . . . Follow-up Attacks . | . . . . Damage Inflicted 1337 | 89 32 499 717 Guns 853 | 88 31 497 237 Cannons . | . . . . Explosions . | . . . . Melee 480 | . . . 480 Ramming 4 | 1 1 2 . Kinetic 785 | 88 31 497 169 Thermal 68 | . . . 68 Explosive . | . . . . Electromagnetic . | . . . . Impact 480 | . . . 480 Slashing . | . . . . Piercing . | . . . . Highest Corruption . | . . . . Average Corruption . | . . . . Corruption Purged . | . . . . Corruption Blocked . | . . . . Overload Shots . | . . . . Overflow Damage 95 | . . . 95 Projectiles . | . . . . Explosions . | . . . . Melee 95 | . . . 95 Knockbacks 3 | . . . 3 Impact 3 | . . . 3 Kinetic . | . . . . Secondary . | . . . . Self-Inflicted Damage 1 | . . 1 . Shots . | . . . . Rammed 3 | 1 1 1 . Targets Rammed 3 | 1 1 1 . Kicked . | . . . . Crushed . | . . . . Highest Temperature 30 | . . 26 30 Average Temperature 11 | . . 9 16 Received Heat Transfer 396 | . . 153 243 Siege Activations . | . . . . Martial Activations . | . . . . Shielding Activations . | . . . . Robots Disrupted . | . . . . Combat Hostiles . | . . . . Robots Corrupted 3 | . . . 3 Combat Hostiles 3 | . . . 3 Parts Fried 3 | . . . 3 Impact Corruptions 5 | . . . 5 Robots Melted . | . . . . Combat Hostiles . | . . . . Parts Melted 1 | . . . 1 Heat Transferred 75 | . . . 75 Parts Sabotaged . | . . . . Parts Stolen . | . . . . Parts Stripped . | . . . . Power Chain Reactions . | . . . . Alert | -11 -10 -10 -10 ------- Run | Yrd Mat Min Sub Maximum Alert Level . | . . . . Low Security (%) 100 | 100 100 100 . Level 1 . | . . . . Level 2 . | . . . . Level 3 . | . . . . Level 4 . | . . . . Level 5 . | . . . . High Security . | . . . . Max Security . | . . . . Peak Influence 60 | 10 11 60 . Initial . | . . . . Average 5 | 1 . 9 . Influence Increases 352 | 20 31 221 80 Destroy 0b10 Robot/C 200 | . . 180 20 Destroy 0b10 Robot/NC 40 | 20 10 10 . Destroy Leader 32 | . 2 30 . Successful Hack 19 | . 19 . . Destroy Structure 1 | . . 1 . Lose Combat Pursuer 60 | . . . 60 Influence Decreases 352 | 20 31 221 80 Time Decay 352 | 20 31 221 80 Squads Dispatched . | . . . . Investigation . | . . . . Extermination . | . . . . Reinforcement . | . . . . Assault . | . . . . Garrison . | . . . . Intercept . | . . . . Searches Triggered . | . . . . Construction Impeded . | . . . . Haulers Reinforced . | . . . . Active Scanning Responses . | . . . . Cargo Convoy Interrupts . | . . . . Stealth | -11 -10 -10 -10 --------- Run | Yrd Mat Min Sub Distress Signals . | . . . . Communications Jammed . | . . . . Distress Signals . | . . . . Times Spotted 25 | . 3 10 12 Peak Tracking Total 8 | . 1 3 8 Tactical Retreats 2 | . . . 2 Traps | -11 -10 -10 -10 ------- Run | Yrd Mat Min Sub Traps Triggered 1 | . . . 1 Indirectly . | . . . . Trap Hack Attempts . | . . . . Triggered . | . . . . Disarmed . | . . . . Reprogrammed . | . . . . Reused . | . . . . Traps Extracted . | . . . . Installed . | . . . . Triggered . | . . . . Machines | -11 -10 -10 -10 ---------- Run | Yrd Mat Min Sub Machines Disabled . | . . . . Max in Single Turn . | . . . . Machines Repaired . | . . . . Machines Dismantled . | . . . . Machines Sabotaged . | . . . . Overloaded Fab Kills . | . . . . Hacking | -11 -10 -10 -10 --------- Run | Yrd Mat Min Sub Machines Accessed 8 | . 7 . 1 Terminals 6 | . 6 . . Fabricators . | . . . . Repair Stations . | . . . . Recycling Units 1 | . 1 . . Scanalyzers . | . . . . Garrison Access . | . . . . Total Hacks 21 | . 17 . 4 Successful 14 | . 10 . 4 Failed 7 | . 7 . . Catastrophic . | . . . . Database Lockouts . | . . . . Manual 17 | . 17 . . Terminals 15 | . 15 . . Fabricators . | . . . . Repair Stations . | . . . . Recycling Units 2 | . 2 . . Scanalyzers . | . . . . Garrison Access . | . . . . Terminal Hacks 6 | . 2 . 4 Record 4 | . . . 4 Robot Analysis 1 | . 1 . . Terminal Index 1 | . 1 . . Fabricator Hacks . | . . . . Repair Station Hacks . | . . . . Recycling Unit Hacks . | . . . . Scanalyzer . | . . . . Garrison Access Hacks . | . . . . Unauthorized Hacks 8 | . 8 . . Terminals 8 | . 8 . . Botnet 2 | . 2 . . Skim 6 | . 6 . . Fabricators . | . . . . Repair Stations . | . . . . Recycling Units . | . . . . Scanalyzers . | . . . . Garrison Access . | . . . . Data Cores Recovered . | . . . . Used . | . . . . Hacking Detections 6 | . 6 . . Full Trace Events . | . . . . Feedback Events . | . . . . Feedback Blocked . | . . . . Robot Schematics Acquired . | . . . . Robots Built . | . . . . Authchips . | . . . . Time . | . . . . Total Robot Build Rating . | . . . . Part Schematics Acquired . | . . . . Parts Built . | . . . . Authchips . | . . . . Time . | . . . . Total Part Build Rating . | . . . . Parts Repaired . | . . . . Time . | . . . . Parts Recycled . | . . . . Recycled Matter . | . . . . Retrieved Matter . | . . . . Retrieved Components . | . . . . Parts Scanalyzed . | . . . . Part Schematics Acquired . | . . . . Parts Damaged . | . . . . Bothacking | -11 -10 -10 -10 ------------ Run | Yrd Mat Min Sub Used RIF Installer . | . . . . Robots Hacked . | . . . . Non-combat . | . . . . Combat . | . . . . Robot Hacks Applied . | . . . . Relay Couplers Released . | . . . . Fabnet Peak Effective % . | . . . . Robots Rewired . | . . . . Allies Hacked . | . . . . Hacks Repelled . | . . . . Allies | -11 -10 -10 -10 -------- Run | Yrd Mat Min Sub Total Allies . | . . . . Largest Group . | . . . . Highest-Rated Group . | . . . . Highest-Rated Ally . | . . . . Total Orders . | . . . . Ally Attacks . | . . . . Total Damage . | . . . . Kills . | . . . . Allies Corrupted . | . . . . Allies Melted . | . . . . Intel | -11 -10 -10 -10 ------- Run | Yrd Mat Min Sub Active Infowar (turns) 1775 | 70 848 31 826 Structural 826 | . . . 826 Seismic 949 | 70 848 31 . Robot Analysis Total 1 | . 1 . . Derelict Logs Recovered 2 | . . 2 . Drone Launches . | . . . . Drone Recoveries . | . . . . Exploration | -11 -10 -10 -10 ------------- Run | Yrd Mat Min Sub Turns Passed 2992 | 174 848 1044 926 Spaces Moved 1552 | 87 362 601 502 Core 4 | 4 . . . Treads 404 | 83 321 . . Legs . | . . . . Wheels 1144 | . 41 601 502 Hover . | . . . . Flight . | . . . . Fastest Speed 50 | 50 140 140 110 Average Speed 153 | 156 157 154 149 Slowest Speed 160 | 160 160 155 155 Overloaded Moves . | . . . . Propulsion Burnouts . | . . . . Robots Hopped . | . . . . Potential Cave-ins 1 | . . . 1 Cave-ins Triggered . | . . . . Exploration Rate (%) 51 | 4 67 97 36 Regions Visited 3 Branch Regions 2 Pre-discovered Areas 1 | . . . 1 Known Exits Taken 1 | . 1 . . Unknown Exits Taken 2 | 1 . 1 . Scrap Searched 3 | . . 1 2 Spaces Dug 8 | . . 1 7 Terrain Destroyed 8 | . . 1 7 Melee 7 | . . 1 6 Projectile 1 | . . . 1 AOE . | . . . . Terrain Rammed . | . . . . Walls Destroyed . | . . . . Machines Disabled . | . . . . Actions | -11 -10 -10 -10 --------- Run | Yrd Mat Min Sub Total 1986 | 108 629 660 589 Wait 295 | . 254 25 16 Move 1549 | 86 361 600 502 Hop . | . . . . Pick Up 20 | 6 5 4 5 Fast Attach 8 | 7 . . 1 Attach 10 | . . . 10 Detach . | . . . . Swap 12 | . 3 3 6 Drop 2 | 1 1 . . Fire 47 | 7 4 26 10 Melee 40 | . . 1 39 Ram 1 | . . 1 . Kick . | . . . . Crush 2 | 1 1 . . Escape Stasis . | . . . . Rewire . | . . . . Trap . | . . . . Miscellaneous . | . . . . Route ------- -11/Scrapyard -10/Materials (discovered 5 exits: *Mat x3 / *Min x2) -10/Mines (discovered 4 exits: *Mat x2 / [*Exi] / *Sub) -10/Subcaves (discovered 2 exits: [*Mat] / [*Rec]) History --------- Turn | Location | Event 7 | -11/Scrapyard | Discovered new exit (range 15) 175 | -11/Scrapyard | Entered Materials 281 | -10/Materials | Discovered new exit (range 16) 317 | -10/Materials | Build established: Mutant 461 | -10/Materials | Discovered new exit (range 16) 561 | -10/Materials | Learned Storage emergency access door positions 601 | -10/Materials | Learned Storage garrison access intel 632 | -10/Materials | Learned Storage trap positions 654 | -10/Materials | Identified exit to Mines 654 | -10/Materials | Identified exit to Materials 667 | -10/Materials | Learned location of 1 exit from Storage 692 | -10/Materials | Learned Storage stockpile data 727 | -10/Materials | Learned location of 1 exit from Recycling 771 | -10/Materials | Loaded intel: 1 repair station location 898 | -10/Materials | Discovered exit to Mines (range 10) 1023 | -10/Materials | Entered Mines 1029 | -10/Mines | Discovered exit to Materials (range 11) 1315 | -10/Mines | Discovered exit to Materials (range 9) 1488 | -10/Mines | Discovered new exit (range 9) 1522 | -10/Mines | Deemed a non-threat by the Exiles lab entrance 1523 | -10/Mines | Discovered new exit (range 5) 1846 | -10/Mines | Learned Materials terminal intel 1848 | -10/Mines | Learned Materials emergency access door positions 2067 | -10/Mines | Entered Subcaves 2068 | -10/Subcaves | Approached by a straggling Scientist 2258 | -10/Subcaves | Core integrity fell below 50% 2319 | -10/Subcaves | Lost 11 parts (1p4n3u3w) 2458 | -10/Subcaves | Shifting Twisted Machinery released Piercing Trap 2459 | -10/Subcaves | Shifting Twisted Machinery released Sub. Monowheel 2541 | -10/Subcaves | Discovered new exit (range 10) 2548 | -10/Subcaves | Core integrity fell below 20% 2730 | -10/Subcaves | Discovered new exit (range 15) 2755 | -10/Subcaves | Shifting Twisted Machinery released Spk. Treads 2757 | -10/Subcaves | Shifting Twisted Machinery released Barrage Gun 2797 | -10/Subcaves | Learned location of Zion (-7) 2797 | -10/Subcaves | Met a Zionite searching for "candidates" 2894 | -10/Subcaves | Visited Clippyterm 2899 | -10/Subcaves | Learned Factory trap positions 2899 | -10/Subcaves | Learned Research security intel 2993 | -10/Subcaves | Destroyed by 9U-DNU(R) with Subdweller Laser Last Messages --------------- AI. I give up. There must be something fundamentally wrong with the algorithm, because no matter how much data I collect to feed it, half the time it still manages to suggest unhelpful sample queries and responses. --DD-NU8 >>Record "Banana Peels" It looks like you're afraid of the consquences of stepping on the wrong spot, would you like help? Data stored: Factory trap records. >>Record "LU-1G1" It looks like you're researching the legendary digger of dangerously deep tunnels, unfortunately it seems not even members of the Boring Crew know what became of that one. >>Record "0b10 Defenses" It looks like you're afraid of guards, would you like help? Data stored: Research security intel. 02944_ Triggered Shrapnel Trap. 02944_ An expanding cloud of shrapnel blasts out in all directions. 02989_ Ion Engine destroyed. 02990_ Sub. Optics melted. 02990_ L4-6P5(R) destroyed. Map ----- +----------------------------------------------------+ | ???????????????????????????################" ##?? | | ?????????????????????##############""######" ##?? | | ?????????????????????############ < ###?##"" ##?? | | ?????????????????????##"""### ##### " ##?? | | ?????????????????????##"" ## ## ###### ###?? | | ?????????????????????##"X #### ##### ###?? | | ?????????????????????##"" ## ##### ""#### "##?? | | ?????????????????????##"""## ###### ###?? | | ?????????????????????######### ####### # # ##?? | | ?????????????????????############## #### ###?? | | ????????????????????????## ######## # ##?? | | ???????????????????????### ####### ###?? | | ??????????????????????#### ;###### # ##?? | | ??????????????????????### ### #####?? | | ??????????????????????##^^ #####?? | | ??????????????????????## ## ###????? | | ??????????????????????### ^ ### ###????? | | ??????????????????????### ;" ### ##????? | | ???????????????????????#### ### ### ###????? | | ???????????????????????### ##### ## ###????? | | ????????????????????????## #### ##????? | | ????????????????????????## ### # ###????? | | ???????????????????????### #### # # ##????? | | ???????????????????????### ### ## #####????? | | ???????????????????????## #### ####????? | | ???????????????????????##@ ###??????? | | ?????????????????########&& ## ###??????? | | ?????????????????### ###%R ## ### #########?? | | ?????????????????## "" =&" ## ### ###########? | | ????????????? "" &" ## ##### ###? | | ??????????? " " ## #### ##? | | ??????????????? " #### "" ### ##? | | ????????????????"" ##### ###? | | ???????????????? ????#### ## ##?? | | ??????????????? ???????### ## ##### ##?? | | ????????????????????????## ######## ##?? | | ????????????????????????########### ##?? | | ????????????????????????######### ######?? | | ??????????????????????????????## ######?? | | ??????????????????????????????## ## ### ###????? | | ??????????????????????????????#### ## ##????? | | ??????????????????????????????#### ### ###????? | | ???????????????????????????????#### #### ###????? | | ???????????????????????????????### ####### ##????? | | ???????????????????????????????## %###### ###????? | | ???????????????????????????????## ##########????? | | ???????????????????????????????### # # ####??????? | | ???????????????????????????????#### ###??????????? | | ????????????????????????????????#### #######?????? | | ?????????????????????????????????### #######?????? | +----------------------------------------------------+ Best States ------------- Heat Dissipation 25 Energy Generation 10 Energy Capacity 250 Matter Stores 300 Matter Capacity 300 Sight Range 16 Terrain Scan Density 10 Armor Coverage 150 Evasion (%) 40 Recoil Reduction 2 Item Schematics ----------------- None Robot Schematics ------------------ None Fabricated ------------ Nothing Repaired ---------- Nothing Alien Tech Used ----------------- None Achievements -------------- None Challenges ------------ None Game ------ Seed BlanketCompanionLoader Manual? 0 Play Time 00:16:43 Cumulative 248.1 hours Start 2025.08.10 @ 17:56:09 End 2025.08.10 @ 18:07:55 Sessions 1 Manual Loads 0 Difficulty Rogue Special Mode None Game No. 259 Rogue 259 Adventurer 0 Explorer 0 Win Type - Total 11 Types 5/0/3/1/0/0/0/1/0/1 Lore% 75 Gallery% 71 Achievement% 66 Wizard Run 0 Options --------- Layout 1 ASCII 0 Keyboard 1 Movement Numpad Keybinds 0 Fullscreen 1 Font 32/SmallcapsGlow Map View 77x35 Zoom Use 0% Tactical HUD 1 Map Filters NONE Filters NONE Steam 1 RUN: 9001327e-5b88-4f8d-9836-3e1d11887205